fUSD/lending_fUSD_20240828
["ID","MTS","AMOUNT","RATE_DAILY","PERIOD"]
[336458445,1724845837958,-369.03,0.000103,2]
[336458446,1724845837967,-1777.25,0.000103,2]
[336458447,1724845837977,-179.19,0.00010417,2]
[336458448,1724845837987,-392.0,0.00010472,2]
[336458449,1724845837996,-3710.43,0.00010629,2]
[336458450,1724845838005,-356.93076021,0.0001069,2]
[336458451,1724845838017,-477.78179979,0.0001069,2]
[336458452,1724845838027,-633.03266898,0.00010762,2]
[336458453,1724845838036,-834.71256,0.0001077,2]
[336458454,1724845838047,-3814.76,0.00010772,2]
[336458455,1724845838057,-200.0,0.00010783,2]
[336458456,1724845838066,-340.3042,0.0001079,2]
[336458459,1724845838221,-734.8780458,0.000108,2]
[336458461,1724845838246,-795.2682055,0.000108,2]
[336458462,1724845838258,-1007.38297438,0.000108,2]
[336458463,1724845838269,-20520.03455556,0.000108,2]
[336458464,1724845838279,-3804.4,0.000108,2]
[336458465,1724845838288,-2655.74203599,0.0001088,2]
[336458466,1724845838314,-2111.13867946,0.0001088,2]
[336458467,1724845838325,-343.85707999,0.0001088,2]
[336458468,1724845838339,-1757.91378033,0.0001088,2]
[336458469,1724845838356,-1002.82251004,0.0001088,2]
[336458471,1724845838368,-9257.565367,0.0001088,2]
[336458472,1724845838390,-675.54813812,0.0001088,2]
[336458473,1724845838402,-11700.47116736,0.0001088,2]
[336458474,1724845838411,-633.46248602,0.00010888,2]
[336458475,1724845838420,-292.8626,0.0001089,2]
[336458476,1724845838430,-1250.7404,0.0001089,2]
[336458477,1724845838440,-9909.32928872,0.0001089,2]
[336458484,1724845839780,-1868.23995527,9.929e-05,2]
[336458485,1724845839789,-155.0,0.0001089,2]
[336458486,1724845839799,-2298.20751128,0.0001089,2]
[336458487,1724845839809,-326.1077,0.0001089,2]
[336458488,1724845839818,-660.34483345,0.0001089,2]
[336458489,1724845839830,-711.24,0.0001089,2]
[336458490,1724845839844,-328.47396994,0.0001089,2]
[336458491,1724845839860,-588.950825,0.0001089,2]
[336458492,1724845839941,-919.65967161,0.0001089,2]
[336458493,1724845839951,-141.20533386,0.0001089,2]
[336458494,1724845840047,-496.07624443,0.0001089,2]
[336458495,1724845840157,-3097.61902171,0.0001089,2]
[336458496,1724845840168,-374.854,0.0001089,2]
[336458497,1724845840177,-1729.318,0.0001089,2]
[336458498,1724845840187,-148555.3688,0.0001089,2]
[336458499,1724845840196,-1117.0285,0.0001089,2]
[336458500,1724845840205,-7500.0,0.0001089,2]
[336458502,1724845840215,-2631.7714,0.0001089,2]
[336458504,1724845840224,-241.45843944,0.000109,4]
[336458505,1724845840233,-162.72061764,0.000109,2]
[336458506,1724845840243,-162.72061764,0.000109,2]
[336458507,1724845840252,-165.1649757,0.000109,2]
[336458508,1724845840262,-189.68817567,0.000109,2]
[336458510,1724845840271,-2767.46755076,0.000109,2]
[336458512,1724845840280,-186.6480781,0.000109,2]
[336458513,1724845840289,-500.0,0.00010911,2]
[336458514,1724845840299,-500.0,0.00010912,2]
[336458515,1724845840308,-500.0,0.00010912,2]
[336458516,1724845840317,-834.71257,0.0001093,2]
[336458517,1724845840326,-191.16,0.00010959,2]
[336458518,1724845840337,-250.0,0.00010959,2]
[336458519,1724845840347,-603.7,0.00010959,2]
[336458520,1724845840356,-150.0,0.00010959,2]
[336458521,1724845840365,-175.79,0.00010959,2]
[336458522,1724845840374,-500.0,0.0001096,2]
[336458523,1724845840384,-500.0,0.0001096,2]
[336458524,1724845840393,-500.0,0.0001096,2]
[336458525,1724845840402,-800.0,0.0001096,2]
[336458526,1724845840411,-700.0,0.0001096,2]
[336458527,1724845840421,-500.0,0.00010973,2]
[336458528,1724845840430,-788824.91384593,0.0001099,4]
[336458529,1724845840439,-3565.3557815,0.00010994,2]
[336458530,1724845840449,-20389.0588345,0.00010994,2]
[336458531,1724845840458,-420.80890126,0.00010998,2]
[336458533,1724845840467,-166654.45526397,0.00010999,2]
[336458534,1724845840477,-35452.91,0.00010999,2]
[336458535,1724845840486,-4867.8359689,0.00010999,3]
[336458536,1724845840496,-348.65552009,0.00010999,2]
[336458537,1724845840505,-207351.08612484,0.00010999,2]
[336458538,1724845840514,-500.0,0.00010999,2]
[336458539,1724845840524,-839.96272062,0.00010999,2]
[336458540,1724845840534,-271114.23387457,0.00011,2]
[336458541,1724845840543,-3580295.82271403,0.00011,2]
[336458542,1724845840556,-167014.38055656,0.00011,2]
[336458543,1724845840567,-228795.93175319,0.00011,2]
[336458546,1724845842790,-265.64160913,0.0001089,2]
[336458547,1724845842798,-127.21638887,0.00011,2]
[336458548,1724845842810,-1045.14,0.00011,2]
[336458549,1724845842821,-659.44059965,0.00011,2]
[336458550,1724845842840,-5060.0,0.00011,2]
[336458551,1724845842851,-2057.28,0.00011,2]
[336458552,1724845842863,-14829.77004963,0.00011,2]
[336458553,1724845842895,-825.42982748,0.00011,2]
[336458554,1724845842906,-536.28001313,0.00011,2]
[336458555,1724845842917,-30000.0,0.00011,2]
[336458556,1724845842928,-467.40676096,0.00011,2]
[336458557,1724845842958,-731.33182785,0.00011,2]
[336458558,1724845842969,-641.85958326,0.00011,2]
[336458617,1724845843641,-302.23,0.00011,2]
[336458620,1724845843652,-300.1,0.00011,2]
[336458622,1724845843663,-307.38558639,0.00011,2]
[336458624,1724845843674,-274.264,0.00011,2]
[336458626,1724845843684,-309.865,0.00011,2]
[336458640,1724845845695,-1671.41068553,0.00011,2]
[336458641,1724845845706,-515.25,0.00011,2]
[336458642,1724845845717,-2635.15652636,0.00011,2]
[336458643,1724845845751,-452430.20922664,0.00011,2]
[336458644,1724845845763,-837.1615839,0.00011,2]
[336458645,1724845845775,-1073.61091901,0.00011,2]
[336458646,1724845845787,-1654.41427958,0.00011,2]
[336458647,1724845845799,-789.18618,0.00011,2]
[336458648,1724845845811,-873.80203649,0.00011,2]
[336458649,1724845845822,-3749.32073134,0.00011,2]
[336458650,1724845845833,-1289.4108312,0.00011,2]
[336458651,1724845845845,-4107.87899242,0.00011,2]
[336458652,1724845845857,-270.462826,0.00011,2]
[336458653,1724845845868,-1748.9835148,0.00011,2]
[336458654,1724845845879,-1568.92074396,0.00011,2]
[336458655,1724845845899,-1279.67756522,0.00011,2]
[336458656,1724845845911,-690.60504577,0.00011,2]
[336458657,1724845845921,-926.66902096,0.00011,2]
[336458658,1724845845933,-2192.36880359,0.00011,2]
[336458659,1724845845945,-4506.06258621,0.00011,2]
[336458660,1724845845960,-161196.34709501,0.00011,2]
[336458661,1724845845971,-2746.17571354,0.00011,2]
[336458662,1724845845983,-642.34459641,0.00011,2]
[336458663,1724845846019,-432.87434618,0.00011,2]
[336458664,1724845846031,-1408.82174182,0.00011,2]
[336458665,1724845846042,-1221.72,0.00011,2]
[336458666,1724845846054,-456.80005735,0.00011,2]
[336458667,1724845846065,-1033.59720923,0.00011,2]
[336458668,1724845846093,-606.13570382,0.00011,2]
[336458669,1724845846104,-264.71887683,0.00011,2]
[336458670,1724845846116,-6646.89595268,0.00011,2]
[336458671,1724845846128,-8413.88216351,0.00011,2]
[336458672,1724845846139,-276.57496315,0.00011,2]
[336458674,1724845846153,-305.0,0.00011,2]
[336458675,1724845875964,500.0,8.22e-05,2]
[336458676,1724845876776,500.0,8.22e-05,2]
[336458677,1724845921416,600.0,8.22e-05,2]
[336458678,1724845921569,455.96806569,8.275e-05,2]
[336458679,1724845922217,600.0,8.275e-05,2]
[336458680,1724845923003,600.0,9.59e-05,2]
[336458681,1724845923793,600.0,9.645e-05,2]
[336458682,1724845932088,379.28,8.542e-05,2]
[336458683,1724846431313,360.31,8.219e-05,2]
[336458684,1724846605310,672.0,9.884e-05,2]
[336458685,1724846748312,948.85702409,9.909e-05,2]
[336458687,1724846774527,500.0,8.22e-05,2]
[336458703,1724846857791,296.55,9.856e-05,2]
[336458711,1724846956009,342.29,8.219e-05,2]
[336458713,1724847009515,155.0,9.899e-05,2]
[336458716,1724847031910,-200.0,9.951e-05,2]
[336458717,1724847031921,-3056.74546623,9.962e-05,2]
[336458718,1724847031933,-1117.22136038,9.962e-05,2]
[336458719,1724847031968,-300.3,9.962e-05,2]
[336458720,1724847031987,-436.64173545,9.962e-05,2]
[336458721,1724847032024,-7404.50285049,9.962e-05,2]
[336458722,1724847032037,-7432.67863342,9.962e-05,2]
[336458723,1724847032047,-633.46248602,9.988e-05,2]
[336458724,1724847032057,-155.0,9.988e-05,2]
[336458725,1724847032066,-303.79587896,9.988e-05,2]
[336458726,1724847032077,-300.0,9.999e-05,2]
[336458727,1724847032087,-1050.0,0.0001,2]
[336458728,1724847032097,-21380.70396394,0.0001,2]
[336458729,1724847032121,-297.99594133,0.0001,2]
[336458730,1724847032138,-4437.30009473,0.0001,2]
[336458731,1724847032149,-155.0,0.00010009,2]
[336458732,1724847032159,-385.82986918,0.00010026,2]
[336458733,1724847032169,-152.2,0.00010069,2]
[336458734,1724847032178,-328.0,0.00010069,2]
[336458735,1724847032188,-342.29,0.00010468,2]
[336458736,1724847032198,-150.0,0.000105,2]
[336458737,1724847032208,-531.8,0.000105,2]
[336458738,1724847032218,-1581.66,0.000105,2]
[336458739,1724847032231,-150.0,0.000105,2]
[336458740,1724847032241,-531.8,0.000105,2]
[336458742,1724847032251,-150.0,0.000105,2]
[336458744,1724847032260,-150.0,0.000105,2]
[336458745,1724847032270,-427.06,0.000105,2]
[336458746,1724847032280,-150.0,0.000105,2]
[336458747,1724847032290,-564.63,0.00010505,2]
[336458748,1724847032300,-2641.75,0.00010505,2]
[336458749,1724847032310,-189.94,0.00010505,2]
[336458750,1724847032319,-712.54,0.000106,2]
[336458751,1724847032330,-212.7,0.000106,2]
[336458752,1724847032340,-790.78,0.000106,2]
[336458753,1724847032350,-426.95,0.000106,2]
[336458754,1724847032360,-150.0,0.000106,2]
[336458755,1724847032370,-150.0,0.000106,2]
[336458756,1724847032380,-531.8,0.000106,2]
[336458757,1724847032390,-150.0,0.000106,2]
[336458758,1724847032400,-531.8,0.000106,2]
[336458759,1724847032410,-1801.86,0.00010713,2]
[336458760,1724847032419,-150.0,0.00010789,2]
[336458761,1724847032429,-122590.09990552,0.0001079,2]
[336458762,1724847032438,-3317.5461,0.0001079,2]
[336458763,1724847032449,-3746.53,0.00010793,2]
[336458764,1724847032459,-4045.4833,0.000108,2]
[336458765,1724847032468,-401.92563255,0.000108,2]
[336458766,1724847032484,-1510.66,0.000108,2]
[336458767,1724847032499,-721.837,0.00010822,2]
[336458768,1724847032510,-930.0,0.00010822,2]
[336458769,1724847032522,-447.0,0.00010822,2]
[336458770,1724847032534,-556.0,0.00010822,2]
[336458771,1724847032545,-809.0,0.00010822,2]
[336458772,1724847032556,-1354.62064648,0.00010822,2]
[336458773,1724847032570,-543.37935352,0.00010822,2]
[336458774,1724847032582,-552.0,0.00010822,2]
[336458775,1724847032594,-1069.714,0.00010822,2]
[336458776,1724847032605,-804.0,0.00010822,2]
[336458777,1724847032615,-248.0,0.00010822,2]
[336458778,1724847032625,-3321.0,0.00010822,2]
[336458779,1724847032635,-1500.0,0.00010842,2]
[336458780,1724847032646,-222.94150994,0.00010843,2]
[336458781,1724847032656,-265.64160913,0.00010861,2]
[336458782,1724847032666,-379.05339329,0.00010862,2]
[336458783,1724847032676,-180.0,0.00010886,2]
[336458784,1724847032685,-2230.99615494,0.00010886,2]
[336458785,1724847032734,-1551.20384506,0.00010886,2]
[336458786,1724847032744,-198.81651896,0.00010899,2]
[336458787,1724847032753,-523.8009413,0.000109,2]
[336458788,1724847032763,-1922.27869468,0.000109,2]
[336458789,1724847032774,-261.15578167,0.000109,2]
[336458790,1724847032786,-517.85068696,0.000109,2]
[336458791,1724847032798,-251.88644517,0.000109,2]
[336458792,1724847032826,-2375.16069498,0.000109,2]
[336458793,1724847032837,-645.44394602,0.000109,2]
[336458797,1724847037966,-633.46248602,9.943e-05,2]
[336458798,1724847037977,-155.0,9.943e-05,2]
[336458799,1724847037987,-1075.68439056,0.00010899,2]
[336458800,1724847037996,-5680.35615043,0.000109,2]
[336458801,1724847038020,-257.82237684,0.000109,2]
[336458802,1724847038031,-3071.9316,0.000109,2]
[336458803,1724847038074,-28119.1141531,0.000109,2]
[336458804,1724847038086,-2924.04817015,0.000109,2]
[336458805,1724847038096,-2500.0,0.000109,2]
[336458806,1724847038105,-169.12638698,0.000109,2]
[336458807,1724847038115,-523.80094129,0.000109,2]
[336458808,1724847038125,-150.0,0.000109,2]
[336458809,1724847038134,-163.42149894,0.000109,2]
[336458810,1724847038147,-324.74035398,0.000109,2]
[336458811,1724847038156,-239.47239614,0.00010912,2]
[336458812,1724847038168,-260.52760386,0.00010912,2]
[336458813,1724847038177,-102.57307689,0.0001094,2]
[336458814,1724847038192,-162.42692311,0.0001094,2]
[336458815,1724847038202,-203.67457996,0.00010949,2]
[336458816,1724847038211,-180.19,0.00010959,2]
[336458817,1724847038220,-1500.0,0.00010959,2]
[336458818,1724847038230,-150.0,0.00010959,2]
[336458819,1724847038240,-250.0,0.00010959,2]
[336458820,1724847038249,-189.32,0.00010959,2]
[336458821,1724847038258,-500.0,0.0001096,2]
[336458822,1724847038268,-500.0,0.0001096,2]
[336458823,1724847038277,-600.0,0.0001096,2]
[336458824,1724847038288,-342.41627858,0.00010973,2]
[336458825,1724847038297,-155.24468221,0.00010973,2]
[336458826,1724847038306,-500.0,0.00010973,2]
[336458827,1724847038316,-422.37400113,0.00010979,2]
[336458828,1724847038328,-833.80739676,0.00010979,2]
[336458829,1724847038337,-152.11,0.0001099,2]
[336458830,1724847038347,-1206.0,0.00010991,2]
[336458832,1724847038356,-8249.26258337,0.00010991,2]
[336458834,1724847038368,-5206.73741663,0.00010991,2]
[336458835,1724847038377,-5851.0,0.00010991,2]
[336458836,1724847038387,-289.0,0.00010991,2]
[336458837,1724847038396,-3730.0,0.00010991,2]
[336458838,1724847038406,-1077.0,0.00010991,2]
[336458839,1724847038415,-420.0,0.00010999,2]
[336458840,1724847038425,-150.0,0.00010999,2]
[336458841,1724847038434,-500.0,0.00010999,2]
[336458842,1724847038443,-309.8211521,0.00010999,2]
[336458843,1724847038453,-258.20192451,0.00010999,2]
[336458845,1724847038463,-500.0,0.00010999,2]
[336458847,1724847038472,-500.0,0.00010999,2]
[336458849,1724847038490,-645.8302467,0.00010999,2]
[336458850,1724847038501,-500.0,0.00010999,2]
[336458852,1724847038511,-180666.71256078,0.00011,2]
[336458854,1724847038523,-1414.5,0.00011,2]
[336458856,1724847038539,-1829.12418851,0.00011,2]
[336458859,1724847038559,-426.35735425,0.00011,2]
[336458861,1724847038573,-12420.1932863,0.00011,2]
[336458864,1724847038589,-1173.65274454,0.00011,2]
[336458866,1724847038601,-767.54721912,0.00011,2]
[336458868,1724847038612,-2247.0243936,0.00011,2]
[336458871,1724847040031,-829.21465201,0.00011,2]
[336458872,1724847040043,-253.21,0.00011,2]
[336458873,1724847040055,-10352.58655339,0.00011,2]
[336458874,1724847040086,-257149.09474297,0.00011,2]
[336458875,1724847040096,-100049.51602275,0.00011,2]
[336458876,1724847040105,-1000.0,0.00011,2]
[336458877,1724847040115,-1000.0,0.00011,2]
[336458878,1724847040124,-1000.0,0.00011,2]
[336458879,1724847040134,-5826220.79420336,0.00011,2]
[336458880,1724847040145,-500.0,0.00011,2]
[336458881,1724847040247,-4439.59627426,0.00011,2]
[336458882,1724847040259,-1226.66149548,0.00011,2]
[336458883,1724847040355,-1583.02640053,0.00011,2]
[336458884,1724847040367,-1730.32425122,0.00011,2]
[336458885,1724847040407,-26562.30521915,0.00011,2]
[336458957,1724847042990,-1000.0,0.00011,2]
[336458959,1724847043006,-391.22403067,0.00011,2]
[336458967,1724847043098,-1587.0000003,0.00011,2]
[336458968,1724847043110,-1011.21766666,0.00011,2]
[336459023,1724847043885,-4514.99947003,0.00011,2]
[336459026,1724847043903,-4078.9714258,0.00011,2]
[336459028,1724847043914,-1605.35180376,0.00011,2]
[336459030,1724847043925,-38532.7306735,0.00011,2]
[336459032,1724847043936,-8679.59506081,0.00011,2]
[336459240,1724847046045,-2660.46376001,0.000109,2]
[336459242,1724847046056,-1294.63954852,0.000109,2]
[336459244,1724847046149,-1743.18619147,0.000109,2]
[336459245,1724847046160,-565.59904709,0.00011,2]
[336459246,1724847046259,-187718.37418976,0.00011,2]
[336459247,1724847046274,-708.1,0.00011,2]
[336459248,1724847046286,-506.04,0.00011,2]
[336459249,1724847046451,-3648.9525255,0.00011,2]
[336459250,1724847077595,500.0,8.275e-05,2]
[336459251,1724847083336,1925.34,9.9e-05,2]
[336459252,1724847096011,500.0,8.275e-05,2]
[336459253,1724847097621,500.0,9.645e-05,2]
[336459254,1724847113555,500.0,8.275e-05,2]
[336459259,1724847431830,377.81,8.219e-05,2]
[336459273,1724847634414,348.65552009,9.899e-05,2]
[336459286,1724847808999,1000.0,9.833e-05,2]
[336459287,1724847833399,310.23007428,9.899e-05,2]
[336459288,1724847840873,155.24896713,9.899e-05,2]
[336459289,1724847842305,1735.45450335,9.899e-05,2]
[336459290,1724847865645,203.67457996,9.899e-05,2]
[336459292,1724847876738,486.12274777,9.899e-05,2]
[336459293,1724847913028,393.02424673,9.899e-05,2]
[336459296,1724847958920,523.67279708,9.899e-05,2]
[336459297,1724847959303,1819.59,9.8e-05,2]
[336459298,1724847973795,500.0,9.782e-05,2]
[336459299,1724847975755,600.0,8.275e-05,2]
[336459300,1724847977232,500.0,8.22e-05,2]
[336459301,1724847977334,600.0,9.645e-05,2]
[336459302,1724848008988,500.0,8.275e-05,2]
[336459303,1724848009060,500.0,8.275e-05,2]
[336459305,1724848010432,500.0,9.645e-05,2]
[336459313,1724848087811,600.0,8.275e-05,2]
[336459314,1724848089826,600.0,9.645e-05,2]
[336459315,1724848100861,539.13,9.748e-05,2]
[336459316,1724848113564,448.76821552,9.645e-05,2]
[336459317,1724848116205,443.67,9.768e-05,2]
[336459319,1724848119207,500.0,8.275e-05,2]
[336459321,1724848120791,500.0,9.645e-05,2]
[336459322,1724848120826,554.66,8.219e-05,2]
[336459368,1724848151742,250.0,9.734e-05,2]
[336459390,1724848232283,-290.16336359,9.962e-05,2]
[336459391,1724848232294,-699.63663641,9.962e-05,2]
[336459392,1724848232304,-266.17561736,9.988e-05,2]
[336459393,1724848232313,-300.0,9.999e-05,2]
[336459394,1724848232322,-150.0,9.999e-05,2]
[336459395,1724848232331,-330.25266535,0.0001,10]
[336459396,1724848232341,-2856.97503587,0.0001,2]
[336459397,1724848232353,-66687.85212053,0.0001,2]
[336459398,1724848232364,-15207.38845316,0.0001,2]
[336459399,1724848232375,-389.84087267,0.0001,2]
[336459401,1724848232388,-401.44091038,0.0001,2]
[336459402,1724848232399,-942.84212366,0.0001,2]
[336459403,1724848232411,-1601.38575,0.0001,2]
[336459404,1724848232423,-658.44201633,0.0001,2]
[336459406,1724848232434,-6708.88506348,0.0001,2]
[336459408,1724848232455,-13177.92299829,0.0001,2]
[336459410,1724848232466,-452.95639778,0.0001,2]
[336459412,1724848232477,-7517.22981859,0.0001,2]
[336459413,1724848232489,-1799.48681328,0.0001,2]
[336459414,1724848232500,-846.08694448,0.0001,2]
[336459415,1724848232511,-508.11036067,0.0001,2]
[336459416,1724848232522,-1350.98025406,0.0001,2]
[336459417,1724848232533,-382.31751455,0.0001,2]
[336459418,1724848232549,-806.59811442,0.0001,2]
[336459419,1724848232561,-889.15149544,0.0001,2]
[336459420,1724848232572,-12150.10694236,0.0001,2]
[336459421,1724848232581,-1050.0,0.0001,2]
[336459422,1724848232591,-338.48650111,0.00010009,2]
[336459423,1724848232601,-466.22732659,0.00010009,2]
[336459424,1724848232610,-385.82986918,0.00010009,2]
[336459425,1724848232620,-164.08556951,0.00010009,2]
[336459426,1724848232629,-155.0,0.00010097,2]
[336459427,1724848232640,-155.0,0.00010097,2]
[336459428,1724848232649,-52520.30187742,0.000101,2]
[336459429,1724848232658,-11504.0,0.000101,3]
[336459430,1724848232668,-11504.0,0.000102,5]
[336459431,1724848232677,-400.0,0.0001025,2]
[336459432,1724848232686,-427.06,0.00010278,2]
[336459433,1724848232695,-150.0,0.00010278,2]
[336459434,1724848232705,-150.0,0.000103,2]
[336459435,1724848232714,-427.06,0.000103,2]
[336459436,1724848232724,-427.06,0.00010378,2]
[336459437,1724848232733,-531.8,0.00010378,2]
[336459438,1724848232742,-150.0,0.00010378,2]
[336459439,1724848232752,-554.66,0.00010464,2]
[336459440,1724848232761,-600.0,0.00010476,2]
[336459441,1724848232770,-600.0,0.00010476,2]
[336459442,1724848232779,-600.0,0.00010476,2]
[336459443,1724848232788,-600.0,0.00010476,2]
[336459444,1724848232797,-600.0,0.00010476,2]
[336459445,1724848232806,-214.8,0.00010495,2]
[336459446,1724848232816,-262.32,0.00010495,2]
[336459447,1724848232825,-356.02,0.000105,2]
[336459448,1724848232835,-600.0,0.00010629,2]
[336459449,1724848232844,-600.0,0.00010629,2]
[336459450,1724848232854,-600.0,0.00010629,2]
[336459451,1724848232863,-606.64,0.00010629,2]
[336459452,1724848232873,-1814.7018344,0.00010661,2]
[336459453,1724848232883,-600.0,0.00010663,2]
[336459454,1724848232898,-600.0,0.00010665,2]
[336459455,1724848232907,-600.0,0.00010665,2]
[336459456,1724848232916,-600.0,0.00010669,2]
[336459457,1724848232926,-600.0,0.0001067,2]
[336459458,1724848232935,-600.0,0.0001067,2]
[336459459,1724848232944,-600.0,0.0001067,2]
[336459460,1724848232953,-600.0,0.0001067,2]
[336459461,1724848232964,-600.0,0.0001067,2]
[336459462,1724848232974,-600.0,0.0001067,2]
[336459463,1724848232983,-600.0,0.0001067,2]
[336459464,1724848232993,-600.0,0.0001067,2]
[336459465,1724848233002,-600.0,0.0001067,2]
[336459466,1724848233011,-600.0,0.0001067,2]
[336459467,1724848233021,-600.0,0.0001067,2]
[336459468,1724848233031,-600.0,0.0001067,2]
[336459469,1724848233042,-600.0,0.0001067,2]
[336459470,1724848233051,-600.0,0.0001067,2]
[336459471,1724848233061,-600.0,0.0001067,2]
[336459472,1724848233070,-600.0,0.0001067,2]
[336459473,1724848233079,-600.0,0.0001067,2]
[336459474,1724848233090,-600.0,0.0001067,2]
[336459475,1724848233100,-600.0,0.0001067,2]
[336459476,1724848233110,-600.0,0.0001067,2]
[336459477,1724848233122,-600.0,0.0001067,2]
[336459478,1724848233132,-600.0,0.0001067,2]
[336459479,1724848233143,-600.0,0.0001067,2]
[336459480,1724848233153,-600.0,0.0001067,2]
[336459481,1724848233163,-600.0,0.0001067,2]
[336459482,1724848233173,-600.0,0.0001067,2]
[336459483,1724848233184,-600.0,0.0001067,2]
[336459484,1724848233194,-600.0,0.0001067,2]
[336459485,1724848233203,-600.0,0.0001067,2]
[336459486,1724848233214,-600.0,0.0001067,2]
[336459487,1724848233223,-600.0,0.0001067,2]
[336459488,1724848233233,-600.0,0.0001067,2]
[336459489,1724848233242,-1011.44750824,0.0001067,2]
[336459490,1724848233252,-359.62,0.00010678,2]
[336459491,1724848233261,-150.0,0.00010678,2]
[336459492,1724848233271,-150.0,0.00010678,2]
[336459493,1724848233280,-167.86,0.00010678,2]
[336459494,1724848233290,-427.06,0.00010678,2]
[336459495,1724848233300,-1462.0,0.000107,2]
[336459496,1724848233309,-150.0,0.000107,2]
[336459497,1724848233319,-300.0,0.000107,2]
[336459498,1724848233328,-150.0,0.00010752,2]
[336459499,1724848233337,-326.63577954,0.00010762,2]
[336459500,1724848233346,-150.0,0.00010774,2]
[336459501,1724848233355,-1284.07,0.000108,2]
[336459502,1724848233364,-34261.17045661,0.0001088,2]
[336459503,1724848233376,-2768.72182236,0.0001088,2]
[336459504,1724848233388,-2000.0,0.0001088,2]
[336459505,1724848233399,-250.0,0.0001088,2]
[336459506,1724848233411,-562.4996314,0.0001088,2]
[336459507,1724848233422,-2780.08729667,0.0001088,2]
[336459508,1724848233433,-299.6900001,0.0001088,2]
[336459509,1724848233450,-5649.28327191,0.0001088,2]
[336459510,1724848233465,-432.000004,0.0001088,2]
[336459519,1724848238131,-429.50734631,9.988e-05,2]
[336459520,1724848238143,-4811.62340988,0.0001088,2]
[336459521,1724848238154,-575.30635287,0.0001088,2]
[336459522,1724848238166,-6896.42854986,0.0001088,2]
[336459523,1724848238178,-6318.31239873,0.0001088,2]
[336459524,1724848238187,-253.4415,0.000109,2]
[336459525,1724848238197,-427.06,0.000109,2]
[336459526,1724848238207,-178.93486701,0.000109,2]
[336459527,1724848238217,-1500.0,0.00010909,2]
[336459528,1724848238226,-500.0,0.00010912,2]
[336459529,1724848238236,-161.328,0.00010914,2]
[336459530,1724848238246,-155.32694516,0.00010949,2]
[336459531,1724848238255,-200.0,0.00010959,2]
[336459532,1724848238265,-166.46,0.00010959,2]
[336459533,1724848238274,-500.0,0.0001096,2]
[336459534,1724848238284,-500.0,0.00010973,2]
[336459535,1724848238295,-3879.82904589,0.00010989,2]
[336459536,1724848238305,-2343.7515109,0.00010989,2]
[336459537,1724848238316,-234.84711303,0.00010989,2]
[336459538,1724848238326,-1258.64665931,0.00010989,2]
[336459539,1724848238336,-55498.09177121,0.0001099,4]
[336459540,1724848238348,-1041.07666733,0.0001099,4]
[336459541,1724848238360,-12619.4000222,0.0001099,4]
[336459542,1724848238421,-301.11415239,0.0001099,4]
[336459543,1724848238433,-280.407,0.0001099,4]
[336459546,1724848238518,-209.07,0.00010177,2]
[336459548,1724848238528,-368.6898118,0.0001099,4]
[336459551,1724848238540,-716.53939924,0.0001099,4]
[336459553,1724848238552,-303.35364713,0.0001099,4]
[336459555,1724848238564,-16602.28958187,0.0001099,4]
[336459557,1724848238578,-1249.1832568,0.0001099,4]
[336459559,1724848238588,-486.81726003,0.0001099,4]
[336459562,1724848238614,-2709.20962988,0.0001099,4]
[336459564,1724848238626,-563110.32963555,0.0001099,4]
[336459566,1724848238635,-150.0,0.00010996,2]
[336459568,1724848238645,-3376.25131081,0.00010996,2]